[Event "Titled Tuesday Blitz April 4 Late 2023"]
[White "Zeman, Matyas"]
[Black "Munoz, Francisco Javier"]
[WhiteFideId "364398"]
[BlackFideId "128368"]
[WhiteElo "2254"]
[BlackElo "2383"]
[Result "1-0"]
[Round "02"]
[TimeControl "180+2"]
[Date "2023.04.04"]
[WhiteClock "0:00:27"]
[BlackClock "0:00:17"]

1. d4 {[%clk 0:02:52]}  d5 {[%clk 0:02:59]} 2. Bf4 {[%clk 0:02:50]}  e6 {[%clk 0:02:59]} 3. e3 {[%clk 0:02:50]}  Nf6 {[%clk 0:03:00]} 4. Nd2 {[%clk 0:02:49]}  Bd6 {[%clk 0:03:01]} 5. Bg3 {[%clk 0:02:50]}  O-O {[%clk 0:03:02]} 6. c3 {[%clk 0:02:50]}  c5 {[%clk 0:03:02]} 7. Ngf3 {[%clk 0:02:50]}  Nc6 {[%clk 0:03:03]} 8. Bd3 {[%clk 0:02:51]}  b6 {[%clk 0:03:03]} 9. e4 {[%clk 0:02:50]}  dxe4 {[%clk 0:02:50]} 10. Nxe4 {[%clk 0:02:51]}  Nxe4 {[%clk 0:02:50]} 11. Bxe4 {[%clk 0:02:52]}  Bb7 {[%clk 0:02:50]} 12. dxc5 {[%clk 0:02:34]}  Bxc5 {[%clk 0:02:48]} 13. Qa4 {[%clk 0:02:34]}  Rc8 {[%clk 0:02:37]} 14. Rd1 {[%clk 0:02:34]}  Qe7 {[%clk 0:02:02]} 15. O-O {[%clk 0:02:29]}  f5 {[%clk 0:01:51]} 16. Bb1 {[%clk 0:02:20]}  Rfd8 {[%clk 0:01:29]} 17. Rfe1 {[%clk 0:02:16]}  Rxd1 {[%clk 0:01:28]} 18. Qxd1 {[%clk 0:02:17]}  a5 {[%clk 0:01:05]} 19. Bxf5 {[%clk 0:02:01]}  Rf8 {[%clk 0:01:00]} 20. Bxe6+ {[%clk 0:01:57]}  Kh8 {[%clk 0:01:00]} 21. Bd5 {[%clk 0:01:39]}  Qf6 {[%clk 0:00:59]} 22. Qa4 {[%clk 0:01:30]}  Nd8 {[%clk 0:00:34]} 23. Bxb7 {[%clk 0:01:27]}  Nxb7 {[%clk 0:00:35]} 24. Re8 {[%clk 0:01:24]}  Nd6 {[%clk 0:00:29]} 25. Bxd6 {[%clk 0:01:15]}  Bxd6 {[%clk 0:00:30]} 26. Rxf8+ {[%clk 0:01:12]}  Qxf8 {[%clk 0:00:31]} 27. Qd7 {[%clk 0:01:09]}  Bc5 {[%clk 0:00:29]} 28. h4 {[%clk 0:00:55]}  h6 {[%clk 0:00:19]} 29. h5 {[%clk 0:00:53]}  Qf4 {[%clk 0:00:19]} 30. Qe8+ {[%clk 0:00:51]}  Kh7 {[%clk 0:00:19]} 31. Qg6+ {[%clk 0:00:51]}  Kg8 {[%clk 0:00:19]} 32. Qe8+ {[%clk 0:00:40]}  Kh7 {[%clk 0:00:19]} 33. Qe2 {[%clk 0:00:39]}  Qc1+ {[%clk 0:00:18]} 34. Kh2 {[%clk 0:00:39]}  Qf4+ {[%clk 0:00:18]} 35. g3 {[%clk 0:00:40]}  Qg4 {[%clk 0:00:17]} 36. Qd3+ {[%clk 0:00:33]}  Kg8 {[%clk 0:00:17]} 37. Qd5+ {[%clk 0:00:31]}  Kh7 {[%clk 0:00:16]} 38. Kg2 {[%clk 0:00:32]}  Qc8 {[%clk 0:00:13]} 39. Ne5 {[%clk 0:00:26]}  Qe8 {[%clk 0:00:13]} 40. Qe4+ {[%clk 0:00:19]}  Kg8 {[%clk 0:00:12]} 41. Qf5 {[%clk 0:00:18]}  Qf8 {[%clk 0:00:11]} 42. Qxf8+ {[%clk 0:00:18]}  Kxf8 {[%clk 0:00:12]} 43. Nd7+ {[%clk 0:00:18]}  Ke7 {[%clk 0:00:10]} 44. Nxc5 {[%clk 0:00:19]}  bxc5 {[%clk 0:00:11]} 45. Kf3 {[%clk 0:00:20]}  Kd6 {[%clk 0:00:11]} 46. Ke4 {[%clk 0:00:20]}  Kc6 {[%clk 0:00:11]} 47. c4 {[%clk 0:00:20]}  Kd6 {[%clk 0:00:11]} 48. Kf5 {[%clk 0:00:21]}  Ke7 {[%clk 0:00:12]} 49. Kg6 {[%clk 0:00:21]}  Kf8 {[%clk 0:00:12]} 50. g4 {[%clk 0:00:20]}  Kg8 {[%clk 0:00:13]} 51. Kf5 {[%clk 0:00:20]}  Kf7 {[%clk 0:00:13]} 52. Ke5 {[%clk 0:00:21]}  g6 {[%clk 0:00:12]} 53. hxg6+ {[%clk 0:00:21]}  Kxg6 {[%clk 0:00:13]} 54. f4 {[%clk 0:00:22]}  h5 {[%clk 0:00:13]} 55. gxh5+ {[%clk 0:00:22]}  Kxh5 {[%clk 0:00:14]} 56. f5 {[%clk 0:00:22]}  Kg5 {[%clk 0:00:15]} 57. Ke6 {[%clk 0:00:23]}  Kf4 {[%clk 0:00:14]} 58. f6 {[%clk 0:00:23]}  Ke4 {[%clk 0:00:15]} 59. f7 {[%clk 0:00:24]}  Kd4 {[%clk 0:00:16]} 60. f8=Q {[%clk 0:00:24]}  Kxc4 {[%clk 0:00:17]} 61. Qf3 {[%clk 0:00:25]}  Kb4 {[%clk 0:00:17]} 62. a3+ {[%clk 0:00:26]}  Ka4 {[%clk 0:00:17]} 63. Qc3 {[%clk 0:00:26]}  c4 {[%clk 0:00:17]} 64. Qxc4# {[%clk 0:00:27]} 1-0


[Site "https://www.chess.com"]

[Event "Titled Tuesday Blitz April 4 Late 2023"]
[White "Figorito, Nick"]
[Black "Gontcharov, Vladislav"]
[WhiteFideId "30923689"]
[BlackFideId "4123492"]
[WhiteElo "2369"]
[BlackElo "2420"]
[Result "1/2-1/2"]
[Round "02"]
[TimeControl "180+2"]
[Date "2023.04.04"]
[WhiteClock "0:00:11"]
[BlackClock "0:00:05"]

1. Nf3 {[%clk 0:03:00]}  Nf6 {[%clk 0:02:58]} 2. g3 {[%clk 0:03:01]}  c5 {[%clk 0:02:56]} 3. Bg2 {[%clk 0:03:01]}  Nc6 {[%clk 0:02:57]} 4. d4 {[%clk 0:03:01]}  cxd4 {[%clk 0:02:44]} 5. Nxd4 {[%clk 0:03:02]}  g6 {[%clk 0:02:44]} 6. O-O {[%clk 0:03:01]}  Bg7 {[%clk 0:02:43]} 7. c4 {[%clk 0:03:01]}  O-O {[%clk 0:02:43]} 8. Nc2 {[%clk 0:03:02]}  d6 {[%clk 0:02:42]} 9. Nc3 {[%clk 0:03:02]}  Qa5 {[%clk 0:02:40]} 10. Qd2 {[%clk 0:02:48]}  Qh5 {[%clk 0:02:36]} 11. Qg5 {[%clk 0:02:45]}  Qxg5 {[%clk 0:02:32]} 12. Bxg5 {[%clk 0:02:46]}  Be6 {[%clk 0:02:31]} 13. b3 {[%clk 0:02:46]}  h6 {[%clk 0:02:25]} 14. Bd2 {[%clk 0:02:43]}  Rfc8 {[%clk 0:02:24]} 15. Rac1 {[%clk 0:02:41]}  Rab8 {[%clk 0:02:23]} 16. Rfd1 {[%clk 0:02:40]}  a6 {[%clk 0:02:18]} 17. Be1 {[%clk 0:02:32]}  b5 {[%clk 0:02:14]} 18. cxb5 {[%clk 0:02:31]}  axb5 {[%clk 0:02:12]} 19. Ne3 {[%clk 0:02:29]}  Nb4 {[%clk 0:01:43]} 20. a3 {[%clk 0:02:13]}  Na6 {[%clk 0:01:37]} 21. Ncd5 {[%clk 0:02:06]}  Nxd5 {[%clk 0:01:26]} 22. Nxd5 {[%clk 0:02:02]}  Bxd5 {[%clk 0:01:22]} 23. Rxc8+ {[%clk 0:01:39]}  Rxc8 {[%clk 0:01:21]} 24. Bxd5 {[%clk 0:01:40]}  Rc2 {[%clk 0:01:16]} 25. Bd2 {[%clk 0:01:26]}  Nc5 {[%clk 0:01:05]} 26. b4 {[%clk 0:01:18]}  Na4 {[%clk 0:01:04]} 27. Bb3 {[%clk 0:01:15]}  Rb2 {[%clk 0:01:04]} 28. Bxa4 {[%clk 0:01:14]}  bxa4 {[%clk 0:01:04]} 29. Kf1 {[%clk 0:01:04]}  Kf8 {[%clk 0:01:02]} 30. Bc1 {[%clk 0:01:00]}  Rb1 {[%clk 0:00:55]} 31. Ke1 {[%clk 0:00:57]}  Ke8 {[%clk 0:00:50]} 32. Be3 {[%clk 0:00:42]}  Bc3+ {[%clk 0:00:44]} 33. Bd2 {[%clk 0:00:41]}  Bxd2+ {[%clk 0:00:40]} 34. Kxd2 {[%clk 0:00:40]}  Rb3 {[%clk 0:00:40]} 35. Ra1 {[%clk 0:00:38]}  Kd7 {[%clk 0:00:40]} 36. h4 {[%clk 0:00:32]}  h5 {[%clk 0:00:40]} 37. e3 {[%clk 0:00:32]}  d5 {[%clk 0:00:39]} 38. Ra2 {[%clk 0:00:29]}  e5 {[%clk 0:00:35]} 39. Ra1 {[%clk 0:00:29]}  Kd6 {[%clk 0:00:35]} 40. Ra2 {[%clk 0:00:29]}  f5 {[%clk 0:00:32]} 41. Ra1 {[%clk 0:00:29]}  d4 {[%clk 0:00:27]} 42. exd4 {[%clk 0:00:29]}  exd4 {[%clk 0:00:27]} 43. Ra2 {[%clk 0:00:29]}  Kd5 {[%clk 0:00:27]} 44. Ra1 {[%clk 0:00:30]}  Ke4 {[%clk 0:00:27]} 45. Ke2 {[%clk 0:00:28]}  d3+ {[%clk 0:00:27]} 46. Kd2 {[%clk 0:00:24]}  Kf3 {[%clk 0:00:27]} 47. Re1 {[%clk 0:00:20]}  Kxf2 {[%clk 0:00:23]} 48. Re6 {[%clk 0:00:17]}  Rxa3 {[%clk 0:00:22]} 49. Rxg6 {[%clk 0:00:17]}  Rb3 {[%clk 0:00:23]} 50. b5 {[%clk 0:00:11]}  Rxb5 {[%clk 0:00:18]} 51. Kxd3 {[%clk 0:00:11]}  Ra5 {[%clk 0:00:18]} 52. Kc2 {[%clk 0:00:11]}  a3 {[%clk 0:00:18]} 53. Kb1 {[%clk 0:00:11]}  a2+ {[%clk 0:00:18]} 54. Ka1 {[%clk 0:00:12]}  Kf3 {[%clk 0:00:14]} 55. Rg5 {[%clk 0:00:12]}  Ke3 {[%clk 0:00:11]} 56. Rxh5 {[%clk 0:00:11]}  Ke4 {[%clk 0:00:09]} 57. g4 {[%clk 0:00:10]}  Rd5 {[%clk 0:00:03]} 58. Rxf5 {[%clk 0:00:09]}  Rxf5 {[%clk 0:00:03]} 59. gxf5 {[%clk 0:00:10]}  Kxf5 {[%clk 0:00:04]} 60. Kxa2 {[%clk 0:00:10]}  Kg4 {[%clk 0:00:05]} 61. h5 {[%clk 0:00:11]}  Kxh5 {[%clk 0:00:05]} 1/2-1/2


[Site "https://www.chess.com"]

[Event "Titled Tuesday Blitz April 4 Late 2023"]
[White "Ansh M Shah"]
[Black "Mirimanian, Hayk"]
[WhiteFideId "25033379"]
[BlackFideId "4700180"]
[WhiteElo "2084"]
[BlackElo "2280"]
[Result "0-1"]
[Round "02"]
[TimeControl "180+2"]
[Date "2023.04.04"]
[WhiteClock "0:01:04"]
[BlackClock "0:00:30"]

1. d4 {[%clk 0:03:00]}  d5 {[%clk 0:02:54]} 2. c4 {[%clk 0:03:01]}  c6 {[%clk 0:02:52]} 3. cxd5 {[%clk 0:03:01]}  cxd5 {[%clk 0:02:48]} 4. Nc3 {[%clk 0:03:01]}  e5 {[%clk 0:02:44]} 5. dxe5 {[%clk 0:03:01]}  d4 {[%clk 0:02:41]} 6. Ne4 {[%clk 0:03:01]}  Nc6 {[%clk 0:02:15]} 7. Nf3 {[%clk 0:03:00]}  Bf5 {[%clk 0:02:06]} 8. Ng3 {[%clk 0:02:50]}  Bg6 {[%clk 0:02:05]} 9. Bf4 {[%clk 0:02:50]}  Bb4+ {[%clk 0:02:00]} 10. Bd2 {[%clk 0:02:50]}  Nge7 {[%clk 0:01:49]} 11. Bxb4 {[%clk 0:02:48]}  Nxb4 {[%clk 0:01:49]} 12. Rc1 {[%clk 0:02:36]}  O-O {[%clk 0:01:41]} 13. a3 {[%clk 0:02:36]}  Nbc6 {[%clk 0:01:39]} 14. h4 {[%clk 0:02:31]}  Nf5 {[%clk 0:01:34]} 15. Nxf5 {[%clk 0:02:27]}  Bxf5 {[%clk 0:01:35]} 16. g3 {[%clk 0:02:27]}  Qb6 {[%clk 0:01:32]} 17. Qd2 {[%clk 0:02:24]}  Rad8 {[%clk 0:01:26]} 18. Bg2 {[%clk 0:02:17]}  d3 {[%clk 0:01:26]} 19. O-O {[%clk 0:02:15]}  dxe2 {[%clk 0:01:22]} 20. Qxe2 {[%clk 0:02:15]}  Bd3 {[%clk 0:01:19]} 21. Qe1 {[%clk 0:02:09]}  Qxb2 {[%clk 0:01:18]} 22. Ng5 {[%clk 0:02:04]}  Nxe5 {[%clk 0:01:15]} 23. Be4 {[%clk 0:01:59]}  h6 {[%clk 0:01:12]} 24. Nf3 {[%clk 0:01:47]}  Bxf1 {[%clk 0:00:58]} 25. Nxe5 {[%clk 0:01:45]}  Ba6 {[%clk 0:00:52]} 26. Rb1 {[%clk 0:01:22]}  Qxa3 {[%clk 0:00:50]} 27. Bc2 {[%clk 0:01:06]}  Qa2 {[%clk 0:00:31]} 28. Qe4 {[%clk 0:01:04]}  f5 {[%clk 0:00:30]} 0-1


[Site "https://www.chess.com"]

[Event "Titled Tuesday Blitz April 4 Late 2023"]
[White "koncheto"]
[Black "Garrido, Denis"]
[BlackFideId "601217"]
[WhiteElo "2542"]
[BlackElo "2365"]
[Result "1-0"]
[Round "02"]
[TimeControl "180+2"]
[Date "2023.04.04"]
[WhiteClock "0:01:34"]
[BlackClock "0:01:11"]

1. e4 {[%clk 0:03:00]}  e5 {[%clk 0:02:59]} 2. Nf3 {[%clk 0:03:00]}  Nc6 {[%clk 0:02:59]} 3. Bc4 {[%clk 0:03:01]}  Nf6 {[%clk 0:03:00]} 4. d3 {[%clk 0:02:52]}  Bc5 {[%clk 0:02:59]} 5. c3 {[%clk 0:02:52]}  a6 {[%clk 0:02:59]} 6. Bb3 {[%clk 0:02:47]}  Ba7 {[%clk 0:02:56]} 7. O-O {[%clk 0:02:48]}  d6 {[%clk 0:02:55]} 8. Nbd2 {[%clk 0:02:48]}  O-O {[%clk 0:02:54]} 9. h3 {[%clk 0:02:48]}  Nh5 {[%clk 0:02:41]} 10. Re1 {[%clk 0:02:47]}  Qf6 {[%clk 0:02:41]} 11. Nf1 {[%clk 0:02:47]}  h6 {[%clk 0:02:39]} 12. Ne3 {[%clk 0:02:38]}  Nf4 {[%clk 0:02:37]} 13. Nd5 {[%clk 0:02:38]}  Nxd5 {[%clk 0:02:37]} 14. Bxd5 {[%clk 0:02:38]}  Ne7 {[%clk 0:02:37]} 15. Bb3 {[%clk 0:02:37]}  Ng6 {[%clk 0:02:36]} 16. d4 {[%clk 0:02:37]}  Nf4 {[%clk 0:02:26]} 17. Bxf4 {[%clk 0:02:34]}  Qxf4 {[%clk 0:02:25]} 18. g3 {[%clk 0:02:34]}  Qf6 {[%clk 0:02:23]} 19. Kg2 {[%clk 0:02:35]}  Be6 {[%clk 0:02:11]} 20. Qd3 {[%clk 0:02:17]}  Rad8 {[%clk 0:02:02]} 21. Rad1 {[%clk 0:02:16]}  Bxb3 {[%clk 0:01:42]} 22. axb3 {[%clk 0:02:15]}  Rfe8 {[%clk 0:01:38]} 23. Nh4 {[%clk 0:02:10]}  g6 {[%clk 0:01:35]} 24. Qe3 {[%clk 0:02:04]}  Kg7 {[%clk 0:01:34]} 25. dxe5 {[%clk 0:02:05]}  dxe5 {[%clk 0:01:34]} 26. Qxa7 {[%clk 0:02:04]}  Qc6 {[%clk 0:01:17]} 27. Qe3 {[%clk 0:01:50]}  Qb5 {[%clk 0:01:12]} 28. b4 {[%clk 0:01:50]}  a5 {[%clk 0:01:12]} 29. bxa5 {[%clk 0:01:50]}  Qxb2 {[%clk 0:01:12]} 30. Rb1 {[%clk 0:01:38]}  Qa2 {[%clk 0:01:11]} 31. Rxb7 {[%clk 0:01:35]}  Qxa5 {[%clk 0:01:12]} 32. Qa7 {[%clk 0:01:35]}  Rd7 {[%clk 0:01:11]} 33. Qxa5 {[%clk 0:01:34]} 1-0


[Site "https://www.chess.com"]

[Event "Titled Tuesday Blitz April 4 Late 2023"]
[White "Peatman, Carter"]
[Black "Fonseca Manrique, Enrique"]
[WhiteFideId "2096480"]
[BlackFideId "5114330"]
[WhiteElo "2003"]
[BlackElo "2538"]
[Result "1-0"]
[Round "02"]
[TimeControl "180+2"]
[Date "2023.04.04"]
[WhiteClock "0:00:20"]
[BlackClock "0:00:13"]

1. d4 {[%clk 0:03:00]}  Nf6 {[%clk 0:02:59]} 2. Bf4 {[%clk 0:03:00]}  g6 {[%clk 0:02:54]} 3. e3 {[%clk 0:03:00]}  Bg7 {[%clk 0:02:55]} 4. Nf3 {[%clk 0:03:00]}  O-O {[%clk 0:02:55]} 5. h3 {[%clk 0:03:01]}  d6 {[%clk 0:02:53]} 6. Bh2 {[%clk 0:03:02]}  Nc6 {[%clk 0:02:52]} 7. Be2 {[%clk 0:03:00]}  e5 {[%clk 0:02:51]} 8. O-O {[%clk 0:02:58]}  exd4 {[%clk 0:02:48]} 9. exd4 {[%clk 0:02:57]}  Re8 {[%clk 0:02:48]} 10. c3 {[%clk 0:02:56]}  a5 {[%clk 0:02:44]} 11. a4 {[%clk 0:02:56]}  b6 {[%clk 0:02:37]} 12. Na3 {[%clk 0:02:55]}  Bb7 {[%clk 0:02:37]} 13. Nb5 {[%clk 0:02:55]}  Ne7 {[%clk 0:02:35]} 14. Nd2 {[%clk 0:02:52]}  Qd7 {[%clk 0:02:30]} 15. Bf3 {[%clk 0:02:51]}  Bxf3 {[%clk 0:02:21]} 16. Qxf3 {[%clk 0:02:51]}  Nf5 {[%clk 0:02:21]} 17. Rfe1 {[%clk 0:02:40]}  c6 {[%clk 0:02:19]} 18. Na3 {[%clk 0:02:36]}  d5 {[%clk 0:02:17]} 19. Qd3 {[%clk 0:02:28]}  Ne4 {[%clk 0:02:04]} 20. Nxe4 {[%clk 0:02:19]}  dxe4 {[%clk 0:02:04]} 21. Rxe4 {[%clk 0:02:19]}  Rxe4 {[%clk 0:02:05]} 22. Qxe4 {[%clk 0:02:20]}  Re8 {[%clk 0:02:05]} 23. Qd3 {[%clk 0:02:13]}  c5 {[%clk 0:02:03]} 24. d5 {[%clk 0:02:06]}  Be5 {[%clk 0:01:03]} 25. Nc4 {[%clk 0:01:51]}  Bxh2+ {[%clk 0:01:01]} 26. Kxh2 {[%clk 0:01:51]}  Nd6 {[%clk 0:00:49]} 27. Nxd6 {[%clk 0:01:28]}  Qxd6+ {[%clk 0:00:49]} 28. g3 {[%clk 0:01:28]}  Re5 {[%clk 0:00:49]} 29. Rd1 {[%clk 0:01:27]}  Kg7 {[%clk 0:00:45]} 30. Kg2 {[%clk 0:01:23]}  f5 {[%clk 0:00:43]} 31. b3 {[%clk 0:01:20]}  h5 {[%clk 0:00:40]} 32. c4 {[%clk 0:01:10]}  h4 {[%clk 0:00:35]} 33. Rd2 {[%clk 0:01:09]}  hxg3 {[%clk 0:00:35]} 34. fxg3 {[%clk 0:01:07]}  Re4 {[%clk 0:00:28]} 35. h4 {[%clk 0:00:38]}  Qe5 {[%clk 0:00:27]} 36. Qf3 {[%clk 0:00:31]}  f4 {[%clk 0:00:22]} 37. d6 {[%clk 0:00:25]}  fxg3 {[%clk 0:00:19]} 38. d7 {[%clk 0:00:23]}  Rd4 {[%clk 0:00:14]} 39. d8=Q {[%clk 0:00:20]}  Rxd8 {[%clk 0:00:13]} 40. Rxd8 {[%clk 0:00:20]} 1-0


[Site "https://www.chess.com"]

[Event "Titled Tuesday Blitz April 4 Late 2023"]
[White "Escanor89"]
[Black "Stachanczyk, Jacek"]
[BlackFideId "1116657"]
[WhiteElo "2536"]
[BlackElo "2084"]
[Result "0-1"]
[Round "02"]
[TimeControl "180+2"]
[Date "2023.04.04"]
[WhiteClock "0:01:03"]
[BlackClock "0:02:23"]

1. e4 {[%clk 0:03:00]}  c5 {[%clk 0:02:59]} 2. Nf3 {[%clk 0:03:00]}  d6 {[%clk 0:02:59]} 3. Bb5+ {[%clk 0:02:59]}  Bd7 {[%clk 0:02:58]} 4. Bxd7+ {[%clk 0:02:59]}  Qxd7 {[%clk 0:02:59]} 5. c4 {[%clk 0:02:59]}  Nf6 {[%clk 0:02:59]} 6. Nc3 {[%clk 0:02:59]}  g6 {[%clk 0:02:59]} 7. d4 {[%clk 0:02:58]}  cxd4 {[%clk 0:02:59]} 8. Nxd4 {[%clk 0:02:59]}  Bg7 {[%clk 0:02:59]} 9. O-O {[%clk 0:02:58]}  O-O {[%clk 0:02:56]} 10. f3 {[%clk 0:02:57]}  Rc8 {[%clk 0:02:54]} 11. b3 {[%clk 0:02:57]}  d5 {[%clk 0:02:54]} 12. exd5 {[%clk 0:02:53]}  Nxd5 {[%clk 0:02:54]} 13. Nxd5 {[%clk 0:02:52]}  e6 {[%clk 0:02:54]} 14. Bh6 {[%clk 0:02:36]}  exd5 {[%clk 0:02:54]} 15. Bxg7 {[%clk 0:02:36]}  Kxg7 {[%clk 0:02:53]} 16. cxd5 {[%clk 0:02:25]}  Qxd5 {[%clk 0:02:47]} 17. a4 {[%clk 0:02:09]}  Rd8 {[%clk 0:02:38]} 18. Nb5 {[%clk 0:01:04]}  Qc5+ {[%clk 0:02:34]} 19. Kh1 {[%clk 0:01:02]}  Rxd1 {[%clk 0:02:32]} 20. Rfxd1 {[%clk 0:01:03]}  Nc6 {[%clk 0:02:30]} 21. Rac1 {[%clk 0:01:03]}  Rd8 {[%clk 0:02:23]} 0-1


[Site "https://www.chess.com"]

[Event "Titled Tuesday Blitz April 4 Late 2023"]
[White "Polanco Nunez, Yoel Estarling"]
[Black "Mekhane, Adam"]
[WhiteFideId "6401783"]
[BlackFideId "36050601"]
[WhiteElo "2132"]
[BlackElo "2177"]
[Result "0-1"]
[Round "02"]
[TimeControl "180+2"]
[Date "2023.04.04"]
[WhiteClock "0:00:19"]
[BlackClock "0:00:10"]

1. d4 {[%clk 0:02:59]}  Nf6 {[%clk 0:02:55]} 2. Nf3 {[%clk 0:02:59]}  g6 {[%clk 0:02:55]} 3. g3 {[%clk 0:02:59]}  Bg7 {[%clk 0:02:56]} 4. Bg2 {[%clk 0:02:59]}  O-O {[%clk 0:02:55]} 5. O-O {[%clk 0:03:00]}  d6 {[%clk 0:02:56]} 6. Nc3 {[%clk 0:03:00]}  Nbd7 {[%clk 0:02:56]} 7. e4 {[%clk 0:02:59]}  e5 {[%clk 0:02:55]} 8. h3 {[%clk 0:03:00]}  c6 {[%clk 0:02:53]} 9. a4 {[%clk 0:03:00]}  Qc7 {[%clk 0:02:53]} 10. Qd3 {[%clk 0:02:54]}  Re8 {[%clk 0:02:52]} 11. Rd1 {[%clk 0:02:53]}  exd4 {[%clk 0:02:45]} 12. Nxd4 {[%clk 0:02:54]}  Nc5 {[%clk 0:02:45]} 13. Qc4 {[%clk 0:02:35]}  Nfxe4 {[%clk 0:02:28]} 14. Ndb5 {[%clk 0:02:25]}  cxb5 {[%clk 0:02:22]} 15. Nxb5 {[%clk 0:02:19]}  Qe7 {[%clk 0:02:06]} 16. Nxd6 {[%clk 0:02:11]}  Be6 {[%clk 0:01:50]} 17. Qb4 {[%clk 0:02:10]}  Nxd6 {[%clk 0:01:30]} 18. Qxc5 {[%clk 0:02:08]}  Nf5 {[%clk 0:01:30]} 19. Qxe7 {[%clk 0:02:00]}  Rxe7 {[%clk 0:01:29]} 20. c3 {[%clk 0:01:59]}  Rae8 {[%clk 0:01:15]} 21. Bg5 {[%clk 0:01:57]}  Rd7 {[%clk 0:01:11]} 22. Rxd7 {[%clk 0:01:56]}  Bxd7 {[%clk 0:01:11]} 23. Bxb7 {[%clk 0:01:55]}  Rb8 {[%clk 0:01:11]} 24. Bd5 {[%clk 0:01:45]}  Rxb2 {[%clk 0:01:05]} 25. c4 {[%clk 0:01:38]}  h6 {[%clk 0:01:01]} 26. Bf4 {[%clk 0:01:34]}  Bd4 {[%clk 0:01:00]} 27. Rf1 {[%clk 0:01:21]}  Bxa4 {[%clk 0:01:00]} 28. Kg2 {[%clk 0:01:18]}  g5 {[%clk 0:00:46]} 29. Bc1 {[%clk 0:01:13]}  Rc2 {[%clk 0:00:45]} 30. Be4 {[%clk 0:01:12]}  Nd6 {[%clk 0:00:19]} 31. Bxc2 {[%clk 0:01:09]}  Bxc2 {[%clk 0:00:20]} 32. h4 {[%clk 0:00:54]}  a5 {[%clk 0:00:20]} 33. hxg5 {[%clk 0:00:54]}  hxg5 {[%clk 0:00:19]} 34. Bxg5 {[%clk 0:00:54]}  a4 {[%clk 0:00:19]} 35. Rc1 {[%clk 0:00:45]}  Bb3 {[%clk 0:00:14]} 36. c5 {[%clk 0:00:45]}  Nc8 {[%clk 0:00:13]} 37. Be3 {[%clk 0:00:41]}  Bb2 {[%clk 0:00:13]} 38. Re1 {[%clk 0:00:32]}  a3 {[%clk 0:00:13]} 39. Bc1 {[%clk 0:00:32]}  Bxc1 {[%clk 0:00:09]} 40. Rxc1 {[%clk 0:00:31]}  Kf8 {[%clk 0:00:10]} 41. Kf3 {[%clk 0:00:31]}  Ke7 {[%clk 0:00:10]} 42. Ke4 {[%clk 0:00:31]}  Kd7 {[%clk 0:00:10]} 43. Kd4 {[%clk 0:00:31]}  Kc6 {[%clk 0:00:10]} 44. Kc3 {[%clk 0:00:28]}  Be6 {[%clk 0:00:11]} 45. Kb4 {[%clk 0:00:27]}  a2 {[%clk 0:00:10]} 46. g4 {[%clk 0:00:25]}  Bxg4 {[%clk 0:00:09]} 47. Re1 {[%clk 0:00:21]}  Be6 {[%clk 0:00:09]} 48. f4 {[%clk 0:00:22]}  Ne7 {[%clk 0:00:09]} 49. Ka3 {[%clk 0:00:19]}  Nf5 {[%clk 0:00:09]} 50. Kb4 {[%clk 0:00:18]}  Nd4 {[%clk 0:00:09]} 51. Kc3 {[%clk 0:00:18]}  Nb3 {[%clk 0:00:08]} 52. Kb2 {[%clk 0:00:18]}  a1=Q+ {[%clk 0:00:08]} 53. Rxa1 {[%clk 0:00:18]}  Nxa1 {[%clk 0:00:09]} 54. Kxa1 {[%clk 0:00:18]}  Kxc5 {[%clk 0:00:09]} 55. Kb2 {[%clk 0:00:19]}  Kd4 {[%clk 0:00:10]} 0-1


[Site "https://www.chess.com"]

[Event "Titled Tuesday Blitz April 4 Late 2023"]
[White "Fiorito, Joaquin"]
[Black "Rodriguez Santiago, Jaime"]
[WhiteFideId "180173"]
[BlackFideId "3100898"]
[WhiteElo "2157"]
[BlackElo "2025"]
[Result "1-0"]
[Round "02"]
[TimeControl "180+2"]
[Date "2023.04.04"]
[WhiteClock "0:01:48"]
[BlackClock "0:01:12"]

1. d4 {[%clk 0:03:00]}  Nf6 {[%clk 0:02:59]} 2. c4 {[%clk 0:03:00]}  e6 {[%clk 0:02:59]} 3. Nc3 {[%clk 0:03:00]}  Bb4 {[%clk 0:02:59]} 4. f3 {[%clk 0:03:01]}  d5 {[%clk 0:02:54]} 5. a3 {[%clk 0:03:01]}  Bxc3+ {[%clk 0:02:54]} 6. bxc3 {[%clk 0:03:02]}  O-O {[%clk 0:02:48]} 7. cxd5 {[%clk 0:03:02]}  exd5 {[%clk 0:02:48]} 8. e3 {[%clk 0:03:02]}  Re8 {[%clk 0:02:48]} 9. Bd3 {[%clk 0:03:03]}  b6 {[%clk 0:02:42]} 10. Ne2 {[%clk 0:03:02]}  c5 {[%clk 0:02:41]} 11. O-O {[%clk 0:03:03]}  Nc6 {[%clk 0:02:38]} 12. Ng3 {[%clk 0:02:57]}  h5 {[%clk 0:02:20]} 13. Ra2 {[%clk 0:02:28]}  h4 {[%clk 0:02:19]} 14. Nf5 {[%clk 0:02:28]}  h3 {[%clk 0:02:13]} 15. gxh3 {[%clk 0:02:22]}  Bxf5 {[%clk 0:02:00]} 16. Bxf5 {[%clk 0:02:21]}  g6 {[%clk 0:02:00]} 17. Rg2 {[%clk 0:02:19]}  Kh7 {[%clk 0:01:55]} 18. Bb1 {[%clk 0:02:12]}  Qd7 {[%clk 0:01:51]} 19. Rg3 {[%clk 0:02:03]}  Nh5 {[%clk 0:01:48]} 20. Rg4 {[%clk 0:02:03]}  Nf6 {[%clk 0:01:37]} 21. Rh4+ {[%clk 0:02:02]}  Kg7 {[%clk 0:01:37]} 22. e4 {[%clk 0:01:54]}  dxe4 {[%clk 0:01:34]} 23. fxe4 {[%clk 0:01:53]}  cxd4 {[%clk 0:01:16]} 24. Bh6+ {[%clk 0:01:51]}  Kg8 {[%clk 0:01:12]} 25. Rxf6 {[%clk 0:01:48]} 1-0


[Site "https://www.chess.com"]

[Event "Titled Tuesday Blitz April 4 Late 2023"]
[White "Rian, Kapriaga"]
[Black "Kim, Sergey"]
[WhiteFideId "7103263"]
[BlackFideId "13700570"]
[WhiteElo "2338"]
[BlackElo "2531"]
[Result "0-1"]
[Round "02"]
[TimeControl "180+2"]
[Date "2023.04.04"]
[WhiteClock "0:00:04"]
[BlackClock "0:01:16"]

1. d4 {[%clk 0:03:00]}  Nf6 {[%clk 0:02:59]} 2. Nf3 {[%clk 0:02:44]}  g6 {[%clk 0:02:59]} 3. Bg5 {[%clk 0:02:40]}  Bg7 {[%clk 0:02:59]} 4. e3 {[%clk 0:02:37]}  d6 {[%clk 0:02:59]} 5. Nbd2 {[%clk 0:02:35]}  O-O {[%clk 0:02:59]} 6. Be2 {[%clk 0:02:30]}  Nbd7 {[%clk 0:02:59]} 7. O-O {[%clk 0:02:28]}  b6 {[%clk 0:02:59]} 8. a4 {[%clk 0:02:25]}  a5 {[%clk 0:02:58]} 9. Re1 {[%clk 0:02:20]}  Bb7 {[%clk 0:02:58]} 10. h3 {[%clk 0:02:16]}  h6 {[%clk 0:02:58]} 11. Bh4 {[%clk 0:02:15]}  e5 {[%clk 0:02:47]} 12. Bxf6 {[%clk 0:01:52]}  Qxf6 {[%clk 0:02:44]} 13. c3 {[%clk 0:01:51]}  Qe7 {[%clk 0:02:41]} 14. Nh2 {[%clk 0:01:47]}  f5 {[%clk 0:02:40]} 15. Bf3 {[%clk 0:01:46]}  e4 {[%clk 0:02:39]} 16. Be2 {[%clk 0:01:44]}  Kh8 {[%clk 0:02:37]} 17. f4 {[%clk 0:01:28]}  g5 {[%clk 0:02:30]} 18. Rf1 {[%clk 0:01:13]}  Bf6 {[%clk 0:02:27]} 19. g3 {[%clk 0:01:00]}  gxf4 {[%clk 0:02:16]} 20. gxf4 {[%clk 0:00:58]}  Rg8+ {[%clk 0:02:13]} 21. Kh1 {[%clk 0:00:55]}  Bh4 {[%clk 0:02:13]} 22. Bc4 {[%clk 0:00:46]}  Rg3 {[%clk 0:02:11]} 23. Qe2 {[%clk 0:00:44]}  d5 {[%clk 0:02:06]} 24. Bb3 {[%clk 0:00:39]}  Qf7 {[%clk 0:02:01]} 25. Rg1 {[%clk 0:00:35]}  Rxh3 {[%clk 0:01:47]} 26. Rg2 {[%clk 0:00:30]}  Nf6 {[%clk 0:01:42]} 27. Rag1 {[%clk 0:00:24]}  Rg8 {[%clk 0:01:34]} 28. Rxg8+ {[%clk 0:00:21]}  Nxg8 {[%clk 0:01:34]} 29. c4 {[%clk 0:00:12]}  Bg3 {[%clk 0:01:26]} 30. Nf1 {[%clk 0:00:10]}  Bxh2 {[%clk 0:01:22]} 31. Nxh2 {[%clk 0:00:10]}  Nf6 {[%clk 0:01:21]} 32. cxd5 {[%clk 0:00:05]}  Bxd5 {[%clk 0:01:16]} 33. Bxd5 {[%clk 0:00:04]}  Nxd5 {[%clk 0:01:16]} 0-1


[Site "https://www.chess.com"]